bitfinex/quotes_ETHUSD_20241019
["timestamp","ask_amount","ask_price","bid_price","bid_amount"]
[1729377644863,0.034475,2649.8,2649.7,7.78397838]
[1729377648973,0.034475,2649.8,2649.7,7.78417817]
[1729377658675,0.034475,2649.8,2649.7,5.02143755]
[1729377658884,0.034475,2649.8,2649.7,7.86065658]
[1729377659066,0.034475,2649.8,2649.7,7.78518785]
[1729377659477,0.034475,2649.8,2649.7,7.78527054]
[1729377660481,0.034475,2649.8,2649.7,5.02143755]
[1729377661985,0.034475,2649.8,2649.7,5.09690633]
[1729377662300,0.034475,2649.8,2649.7,5.02143755]
[1729377663863,0.034475,2649.8,2649.7,5.0969064]
[1729377664956,0.034475,2649.8,2649.7,5.02143755]
[1729377666167,0.034475,2649.8,2649.7,5.05866412]
[1729377666754,0.034475,2649.8,2649.7,5.0969064]
[1729377668581,0.034475,2649.8,2649.7,5.02143755]
[1729377672019,0.034475,2649.8,2649.7,8.286142]
[1729377672917,0.034475,2649.8,2649.7,9.060442]
[1729377673083,0.034475,2649.8,2649.7,5.79573755]
[1729377673416,0.034475,2649.8,2649.7,9.13590404]
[1729377673646,0.034475,2649.8,2649.7,9.060442]
[1729377676703,0.034475,2649.8,2649.7,5.79573755]
[1729377677036,0.034475,2649.8,2649.7,9.05955016]
[1729377681748,0.034475,2649.8,2649.7,9.05901034]
[1729377690632,0.034475,2649.8,2649.7,9.05791428]
[1729377696459,0.034475,2649.8,2649.7,9.05747656]
[1729377696985,0.034475,2649.8,2649.7,5.79573755]
[1729377697568,0.034475,2649.8,2649.7,9.05747656]
[1729377699165,0.034475,2649.8,2649.7,5.79573755]
[1729377699402,0.034475,2649.8,2649.7,5.87120018]
[1729377699786,0.034475,2649.8,2649.7,9.13293919]
[1729377699954,0.034475,2649.8,2649.7,5.79573755]
[1729377700157,0.034475,2649.8,2649.7,9.1329392]
[1729377700457,0.034475,2649.8,2649.7,9.05747656]
[1729377701357,0.034475,2649.8,2649.7,9.05779095]
[1729377702155,0.034475,2649.8,2649.7,5.79573755]
[1729377702392,0.034475,2649.8,2649.7,5.87120021]
[1729377702767,0.034475,2649.8,2649.7,9.13325361]
[1729377702954,0.034475,2649.8,2649.7,9.05779095]
[1729377706181,0.034475,2649.8,2649.7,9.05801506]
[1729377710996,0.034475,2649.8,2649.7,9.05790749]
[1729377711703,0.034475,2649.8,2649.7,8.93797562]
[1729377712138,0.034475,2649.8,2649.7,10.90453055]
[1729377712308,0.034475,2649.8,2649.7,8.93797562]
[1729377713242,0.034475,2649.8,2649.7,14.83759029]
[1729377714113,0.7525,2650.7,2649.9,0.7597]
[1729377714300,0.7525,2650.7,2650.6,2.36528625]
[1729377714500,0.7525,2650.7,2650.6,2.50747419]
[1729377714944,0.7525,2650.7,2650.6,5.90292419]
[1729377715301,0.7525,2650.7,2650.6,3.53763794]
[1729377715514,0.7525,2650.7,2650.6,5.90292419]
[1729377715835,0.7525,2650.7,2650.6,3.39545]
[1729377716035,0.7525,2650.7,2650.6,3.53743362]
[1729377716201,0.7525,2650.7,2650.6,5.90033043]
[1729377716530,0.7525,2650.7,2650.6,5.90032808]
[1729377716734,0.7525,2650.7,2650.6,5.90035354]
[1729377717039,0.7525,2650.7,2650.6,6.76608993]
[1729377717235,0.7525,2650.7,2650.6,6.76547333]
[1729377717540,0.7525,2650.7,2650.6,6.62348971]
[1729377717749,0.7525,2650.7,2650.6,6.76537848]
[1729377718700,0.7525,2650.7,2650.6,6.62348971]
[1729377719316,0.7525,2650.7,2650.6,4.26125165]
[1729377720526,0.7525,2650.7,2650.5,5.75695297]
[1729377720862,0.7525,2650.7,2650.5,2.36138297]
[1729377721648,0.7525,2650.7,2650.5,6.79106]
[1729377721820,0.7525,2650.7,2650.5,5.75687297]
[1729377722745,0.7525,2650.7,2650.5,3.39549]
[1729377722951,0.7525,2650.7,2650.5,9.15239297]
[1729377723153,0.7525,2650.7,2650.5,5.75687297]
[1729377723508,0.7525,2650.7,2650.5,3.39549]
[1729377724333,0.7525,2650.7,2650.4,5.75640049]
[1729377724539,0.7525,2650.7,2650.6,1.96715866]
[1729377724752,0.41477,2650.7,2650.6,1.96715866]
[1729377724946,1.16727,2650.7,2650.6,1.96715866]
[1729377725148,0.7525,2650.7,2650.6,1.96715866]
[1729377726017,3.39494,2651.0,2650.6,1.96715866]
[1729377726254,3.39494,2651.0,2650.9,0.78692506]
[1729377727157,3.39483,2651.1,2650.8,1.1803876]
[1729377727158,3.39507,2650.9,2650.8,1.1803876]
[1729377728941,4.14757,2650.9,2650.8,1.1803876]
[1729377729155,4.90181,2650.9,2650.8,1.1803876]
[1729377730462,4.14931,2650.9,2650.8,0.78678698]
[1729377730969,4.90181,2650.9,2650.8,0.78678698]
[1729377733744,4.90181,2650.9,2650.7,1.1803876]
[1729377733745,4.14931,2650.9,2650.7,1.1803876]
[1729377733943,4.93531,2650.9,2650.8,0.78685728]
[1729377734749,4.93531,2650.9,2650.7,1.1803876]
[1729377734952,3.3952,2650.8,2650.7,1.18022885]
[1729377735167,3.3952,2650.8,2650.6,1.57385013]
[1729377735372,3.3952,2650.8,2650.7,1.18022031]
[1729377736777,4.1812,2650.8,2650.7,1.18022031]
[1729377736937,4.1812,2650.8,2650.7,1.18027605]
[1729377738278,4.1812,2650.8,2650.6,1.57385013]
[1729377738481,4.1812,2650.8,2650.7,1.18017328]
[1729377738992,4.1812,2650.8,2650.6,1.57385013]
[1729377739146,4.1812,2650.8,2650.7,1.57385013]
[1729377739481,7.57647,2650.8,2650.7,1.18011796]
[1729377739655,8.334117,2650.8,2650.7,1.18011796]
[1729377740186,4.938847,2650.8,2650.7,0.78686094]
[1729377759095,3.39557,2650.6,2650.4,1.5744447]
[1729377760325,3.39557,2650.6,2650.5,1.5744447]
[1729377760619,3.39557,2650.6,2650.4,1.5744447]
[1729377760817,3.39557,2650.6,2650.5,1.5744447]
[1729377761985,3.39557,2650.6,2650.4,1.5744447]
[1729377762801,3.39558,2650.5,2650.4,1.5744447]
[1729377763622,3.39558,2650.5,2650.3,1.96805588]
[1729377763934,3.39558,2650.5,2650.4,1.96805588]
[1729377767833,3.39558,2650.5,2650.4,1.96876571]
[1729377769442,3.39558,2650.5,2650.2,2.36251885]
[1729377769738,3.39557,2650.6,2650.2,3.29556193]
[1729377770044,3.39557,2650.6,2650.5,1.96899304]
[1729377772744,3.39557,2650.6,2650.5,1.96925148]
[1729377772943,6.79032,2650.9,2650.4,2.36310178]
[1729377773102,3.39515,2650.9,2650.8,1.57511562]
[1729377780469,3.3952,2650.8,2650.7,1.57511562]
[1729377781783,3.3952,2650.8,2650.7,1.57497798]
[1729377782681,3.39532,2650.7,2650.6,1.96868223]
[1729377783238,3.39532,2650.7,2650.4,2.36241868]
[1729377783479,3.39549,2650.6,2650.4,2.36241868]
[1729377783651,3.39558,2650.5,2650.4,2.36241868]
[1729377784168,3.39558,2650.5,2650.3,2.36241868]
[1729377785769,3.39558,2650.5,2650.3,2.36281371]
[1729377786075,3.39558,2650.5,2650.4,2.36281371]
[1729377786400,4.21616,2650.6,2650.3,2.36281371]
[1729377786678,3.39571,2650.4,2650.2,2.36281371]
[1729377790444,6.79151,2650.4,2650.2,2.36281371]
[1729377790639,6.79151,2650.4,2650.2,2.36344443]
[1729377790640,3.39571,2650.4,2650.2,2.36344443]
[1729377795506,3.39571,2650.4,2650.2,2.36343651]
[1729377796609,3.39571,2650.4,2650.2,3.16923651]
[1729377797970,3.3956,2650.5,2650.2,3.16923651]
[1729377798810,3.3956,2650.5,2650.2,4.10151542]
[1729377799441,3.39491,2651.1,2650.5,3.39551]
[1729377799748,8.1239,2651.7,2650.9,0.8058]
[1729377800037,8.1239,2651.7,2651.5,1.18066763]
[1729377800038,3.39417,2651.6,2651.5,1.18066763]
[1729377800916,4.16740198,2651.6,2651.5,1.18066763]
[1729377801484,3.5241398,2651.8,2651.4,1.98646763]
[1729377801699,3.5241398,2651.8,2651.6,0.78613192]
[1729377802018,3.5241398,2651.8,2651.7,0.78613192]
[1729377802525,3.5241398,2651.8,2651.7,0.7855278]
[1729377803238,3.39404,2651.7,2651.6,0.7855278]
[1729377803439,3.5241398,2651.8,2651.5,0.7855278]
[1729377803626,3.5241398,2651.8,2651.6,0.7855278]
[1729377804190,3.39404,2651.7,2651.6,0.7855278]
[1729377804435,0.1302098,2651.8,2651.6,0.7855278]
[1729377804635,3.5241598,2651.8,2651.6,0.7855278]
[1729377804790,3.5241598,2651.8,2651.5,1.18066763]
[1729377804791,3.5241598,2651.8,2651.5,0.7855278]
[1729377804991,3.39417,2651.6,2651.4,0.7855278]
[1729377805235,3.39443,2651.4,2651.3,0.7855278]
[1729377805527,3.39443,2651.4,2651.2,0.7855278]
[1729377805734,0.52401299,2651.8,2651.3,0.7855278]
[1729377805942,0.1302098,2651.8,2651.7,1.590804]
[1729377806235,0.1302098,2651.8,2651.7,6.93633951]
[1729377806434,0.1302098,2651.8,2651.7,7.16723014]
[1729377806595,0.1302098,2651.8,2651.7,3.69755771]
[1729377806794,0.1302098,2651.8,2651.7,2.12979951]
[1729377807009,0.1302098,2651.8,2651.7,7.09159771]
[1729377807905,0.1302098,2651.8,2651.7,6.69904035]
[1729377808104,0.1302098,2651.8,2651.7,5.52383951]
[1729377808432,0.1302098,2651.8,2651.7,7.09159771]
[1729377808794,0.1302098,2651.8,2651.7,5.52383951]
[1729377809338,0.1302098,2651.8,2651.7,7.09159771]
[1729377809545,0.1302098,2651.8,2651.7,6.69775744]
[1729377810046,0.1302098,2651.8,2651.7,2.75371744]
[1729377810336,0.1302098,2651.8,2651.7,1.58857497]
[1729377811509,0.1302098,2651.8,2651.7,0.8058]
[1729377821430,0.1302098,2651.8,2651.4,0.7848]
[1729377821634,3.5241498,2651.8,2651.4,1.56757497]
[1729377821836,3.5241498,2651.8,2651.4,2.18117926]
[1729377822541,3.5241498,2651.8,2651.4,1.39840429]
[1729377823247,3.39407,2651.7,2651.4,0.7848]
[1729377824077,0.1302098,2651.8,2651.4,0.7848]
[1729377824545,4.17752,2651.7,2651.3,0.78277497]
[1729377825317,0.1302098,2651.8,2651.3,0.78277497]
[1729377825509,0.1302098,2651.8,2651.3,4.17731497]
[1729377825749,0.1302098,2651.8,2651.4,1.5419875]
[1729377830669,3.5241298,2651.8,2651.4,1.5419875]
[1729377833686,3.5241298,2651.8,2651.4,2.32476247]
[1729377834290,3.5241298,2651.8,2651.4,1.5419875]
[1729377834956,3.5241298,2651.8,2651.4,2.32476247]
[1729377837475,3.5241298,2651.8,2651.5,0.78277497]
[1729377838262,3.5241298,2651.8,2651.4,5.71918247]
[1729377838455,3.5241298,2651.8,2651.5,0.78277497]
[1729377839383,3.5241298,2651.8,2651.6,0.78277497]
[1729377839896,3.5241298,2651.8,2651.5,0.78277497]
[1729377840093,3.5241298,2651.8,2651.6,0.78277497]
[1729377841509,3.5241298,2651.8,2651.7,0.78277497]
[1729377841909,3.5241298,2651.8,2651.6,0.78277497]
[1729377842111,3.5241298,2651.8,2651.7,0.78277497]
[1729377843276,3.5241298,2651.8,2651.7,0.80277497]
[1729377843477,0.1302098,2651.8,2651.7,0.02]
[1729377843678,0.1302098,2651.8,2651.7,1.19391793]
[1729377844473,0.1302098,2651.8,2651.7,3.02325481]
[1729377845201,0.1302098,2651.8,2651.7,3.02508067]
[1729377845405,0.1302098,2651.8,2651.7,3.41369257]
[1729377846812,0.1302098,2651.8,2651.7,1.45549661]
[1729377847105,0.1302098,2651.8,2651.7,3.41978883]
[1729377847309,0.1302098,2651.8,2651.7,1.45549661]
[1729377848295,0.1302098,2651.8,2651.7,4.84953661]
[1729377848500,0.1302098,2651.8,2651.7,1.45549661]
[1729377849886,0.1302098,2651.8,2651.7,4.84953661]
[1729377850393,0.1302098,2651.8,2651.7,1.45549661]
[1729377850593,0.1302098,2651.8,2651.7,3.80533176]
[1729377850989,0.1302098,2651.8,2651.7,3.81317956]
[1729377851296,0.1302098,2651.8,2651.7,7.75721956]
[1729377851497,0.1302098,2651.8,2651.7,5.39953661]
[1729377852632,0.1302098,2651.8,2651.7,5.37953661]
[1729377854734,0.1302098,2651.8,2651.7,8.37953661]
[1729377854897,0.1302098,2651.8,2651.7,11.62871842]
[1729377855290,0.1302098,2651.8,2651.7,8.37953661]
[1729377857010,0.1302098,2651.8,2651.7,11.62871842]
[1729377857456,0.1302098,2651.8,2651.7,8.37953661]
[1729377857958,4.15182,2653.1,2652.5,3.39294]
[1729377858165,0.415182,2653.0,2652.9,0.78461216]
[1729377858317,4.15182,2653.1,2652.8,0.78461216]
[1729377858663,7.54364,2653.3,2653.0,0.78461216]
[1729377858868,4.15156,2653.3,2653.0,0.78461216]
[1729377859227,0.7783603,2653.7,2653.1,0.55]
[1729377859430,3.39175,2653.5,2653.1,1.33461216]
[1729377860364,3.39213,2653.2,2653.1,0.78461216]
[1729377860676,3.39213,2653.2,2652.9,0.78461216]
[1729377860977,3.39207,2653.3,2652.9,0.78461216]
[1729377861277,3.39226,2653.1,2652.9,0.78461216]
[1729377861435,6.78463,2653.1,2652.8,0.78461216]
[1729377861634,3.39251,2652.9,2652.8,0.78317042]
[1729377861835,3.39264,2652.8,2652.7,0.78317042]
[1729377862054,3.39264,2652.8,2652.6,0.78317042]
[1729377863741,3.39264,2652.8,2652.7,0.78317042]
[1729377864051,3.39264,2652.8,2652.6,1.17691824]
[1729377864388,3.39264,2652.8,2652.7,0.7828814]
[1729377864884,3.39264,2652.8,2652.7,1.17691824]
[1729377865093,3.807854,2652.8,2652.7,1.17691824]
[1729377865293,3.39276,2652.7,2652.6,1.17691824]
[1729377865475,4.15226,2652.7,2652.6,0.78287068]
[1729377865693,3.39289,2652.6,2652.4,1.17691824]
[1729377865862,3.39289,2652.6,2652.3,1.56922432]
[1729377865863,4.15239,2652.6,2652.5,0.78289764]
[1729377866206,4.15239,2652.6,2652.3,1.17691824]
[1729377866207,3.39302,2652.5,2652.4,0.78289764]
[1729377867175,3.39315,2652.4,2652.3,0.78289764]
[1729377867580,3.39328,2652.3,2652.2,1.17691824]
[1729377867891,3.807884,2652.8,2652.2,2.03953435]
[1729377867892,3.39278,2652.7,2652.2,2.03953435]
[1729377868097,3.39278,2652.7,2652.5,0.78276983]
[1729377868263,3.39278,2652.7,2652.6,0.78276983]
[1729377869512,3.39278,2652.7,2652.5,0.78276983]
[1729377870551,3.39278,2652.7,2652.3,0.78276983]
[1729377870955,3.39293,2652.6,2652.5,0.78276983]
[1729377874984,3.39293,2652.6,2652.4,1.17417723]
[1729377875179,3.39293,2652.6,2652.4,0.78252584]
[1729377875381,3.39302,2652.5,2652.4,0.78252584]
[1729377875620,3.39302,2652.5,2652.2,1.17417723]
[1729377875621,3.39302,2652.5,2652.3,0.78252584]
[1729377875907,6.78604,2652.6,2652.3,0.78252584]
[1729377876916,3.39302,2652.6,2652.3,0.78252584]
[1729377877207,3.39298,2652.6,2652.3,0.78252584]
[1729377877609,3.39306,2652.5,2652.3,0.78252584]
[1729377879473,3.39315,2652.4,2652.3,0.78252584]
[1729377879773,3.39328,2652.3,2652.2,1.17417723]
[1729377884103,3.39328,2652.3,2652.1,1.56556965]
[1729377884788,3.39328,2652.3,2652.2,1.17509229]
[1729377885018,3.39328,2652.3,2652.1,1.56556965]
[1729377885721,3.39328,2652.3,2652.2,1.56556965]
[1729377886080,3.39328,2652.3,2652.1,1.56556965]
[1729377886419,3.39328,2652.3,2652.2,1.56556965]
[1729377886617,3.39328,2652.3,2652.0,1.95847687]
[1729377886618,3.39328,2652.3,2652.1,1.56556965]
[1729377886918,3.39328,2652.3,2652.2,1.56556965]
[1729377887718,3.39328,2652.3,2652.2,1.95847687]
[1729377887893,3.39328,2652.3,2652.2,1.56730552]
[1729377888099,3.39328,2652.3,2652.1,1.56730552]
[1729377888575,3.39328,2652.3,2652.2,1.56730552]
[1729377889024,3.39328,2652.3,2652.2,1.56752576]
[1729377889732,3.39328,2652.3,2652.1,1.56752576]
[1729377890385,3.39328,2652.3,2652.0,1.95940858]
[1729377890386,3.39328,2652.3,2652.2,1.56752576]
[1729377890828,4.19046,2652.4,2652.2,1.95940858]
[1729377891419,4.19046,2652.4,2652.3,1.95940858]
[1729377892395,4.19046,2652.4,2652.3,1.56859595]
[1729377892596,4.948809,2652.4,2652.3,1.56859595]
[1729377896234,4.151509,2652.4,2652.3,1.17739734]
[1729377896848,4.933709,2652.4,2652.3,1.17739734]
[1729377899557,3.39328,2652.3,2652.1,1.96122381]
[1729377899755,3.3934,2652.2,2652.1,1.96122381]
[1729377900052,4.1756,2652.2,2652.1,1.96122381]
[1729377900730,5.0083229,2652.2,2652.1,1.96122381]
[1729377901052,4.17573,2652.1,2652.0,1.96122381]
[1729377901256,4.17573,2652.1,2651.3,4.07597388]
[1729377901257,3.39366,2652.0,2651.7,2.35346857]
[1729377901462,3.39366,2652.0,2651.9,1.96354279]
[1729377901810,3.39388,2651.9,2651.7,2.35346857]
[1729377902013,3.39392,2651.8,2651.7,2.35346857]
[1729377902214,3.39392,2651.8,2651.7,2.35626023]
[1729377902725,3.39379,2651.9,2651.7,2.35626023]
[1729377903541,3.39366,2652.0,2651.7,2.35626023]
[1729377904329,6.78739,2652.0,2651.7,2.35626023]
[1729377904485,6.78739,2652.0,2651.9,1.96311593]
[1729377904632,0.7822,2652.1,2651.9,1.96311593]
[1729377904976,0.7822,2652.1,2651.8,2.35626023]
[1729377904977,3.39353,2652.1,2651.8,2.35626023]
[1729377905284,3.39348,2652.2,2651.9,2.35626023]
[1729377905575,3.39354,2652.1,2651.9,2.35626023]
[1729377905947,3.39324,2652.4,2652.0,0.8326]
[1729377906152,3.39324,2652.4,2652.3,1.96272694]
[1729377906989,4.17516,2652.6,2652.3,1.96276602]
[1729377907277,7.56818,2652.6,2652.5,1.57013114]
[1729377910593,7.51818,2652.6,2652.5,1.57013114]
[1729377910951,3.34296,2652.6,2652.5,1.57013114]
[1729377911178,3.34296,2652.6,2652.4,1.96266392]
[1729377911388,3.34296,2652.6,2652.5,1.96266392]
[1729377911855,3.34296,2652.6,2652.5,1.96325378]
[1729377912020,3.39277,2652.7,2652.5,1.96325378]
[1729377912311,3.39277,2652.7,2652.6,1.96325378]
[1729377912915,3.39258,2652.9,2652.6,1.96325378]
[1729377913077,3.39258,2652.9,2652.8,1.57004403]
[1729377914319,4.19459,2653.0,2652.8,1.57004403]
[1729377914511,3.39239,2653.0,2652.9,1.17727728]
[1729377914909,3.39239,2653.0,2652.8,1.57004403]
[1729377915210,7.58663,2653.2,2652.9,1.57004403]
[1729377915383,7.58663,2653.2,2653.1,0.78471641]
[1729377915613,7.58663,2653.2,2653.1,1.17707462]
[1729377915928,4.1944,2653.2,2653.1,1.17707462]
[1729377916228,3.39225,2653.1,2653.0,1.17707462]
[1729377916599,3.39225,2653.1,2653.0,1.17685958]
[1729377916804,3.39225,2653.1,2652.9,1.57004403]
[1729377917016,3.39225,2653.1,2653.0,1.17685664]
[1729377917227,3.39225,2653.1,2653.0,1.17666442]
[1729377918732,3.39217,2653.2,2653.0,1.49420726]
[1729377918900,3.39217,2653.2,2653.1,0.78433983]
[1729377919101,3.39217,2653.2,2653.0,1.49420726]
[1729377919426,4.19433,2653.2,2653.1,0.78422387]
[1729377919629,4.19433,2653.2,2653.0,1.17666442]
[1729377919630,3.39225,2653.1,2653.0,0.78422387]
[1729377920428,3.39238,2653.0,2652.9,0.78422387]
[1729377920590,3.39238,2653.0,2652.8,1.17666442]
[1729377920591,3.39251,2652.9,2652.8,1.17666442]
[1729377921818,4.19471,2652.9,2652.8,1.17666442]
[1729377922332,4.19471,2652.9,2652.6,1.57004403]
[1729377922333,3.39264,2652.8,2652.7,1.17666442]
[1729377922791,4.19471,2652.9,2652.6,1.57004403]
[1729377922994,3.39276,2652.7,2652.5,1.96101405]
[1729377923223,3.39276,2652.7,2652.6,1.56872626]
[1729377923409,3.39276,2652.7,2652.6,1.56868442]
[1729377925429,4.19471,2652.9,2652.6,1.56868442]
[1729377925606,3.39213,2653.2,2652.7,1.17650877]
[1729377925935,3.39226,2653.1,2652.9,1.17650877]
[1729377926107,3.39213,2653.2,2653.0,0.78414716]
[1729377926295,3.39213,2653.2,2653.1,0.78414716]
[1729377929510,3.39213,2653.2,2653.0,0.78414716]
[1729377929839,3.39225,2653.1,2653.0,0.78414716]
[1729377931647,3.39225,2653.1,2652.9,1.17650877]
[1729377931854,3.39225,2653.1,2653.0,0.78371604]
[1729377935042,3.39213,2653.2,2653.0,0.78371604]
[1729377935243,3.39213,2653.2,2653.1,0.78371604]
[1729377935641,3.39213,2653.2,2653.0,0.78371604]
[1729377936343,3.39213,2653.2,2653.1,0.78371604]
[1729377939086,3.39213,2653.2,2653.0,2.74519319]
[1729377939286,3.39213,2653.2,2653.0,1.17650877]
[1729377939644,3.39213,2653.2,2653.1,1.17650877]
[1729377939843,3.39213,2653.2,2653.1,0.78319566]
[1729377940192,4.18503,2653.2,2653.1,0.78319566]
[1729377941843,0.7929,2653.2,2653.1,1.17650877]
[1729377942044,4.603521,2653.2,2653.1,1.17650877]
[1729377942651,4.603521,2653.2,2653.1,0.78317689]
[1729377943345,4.603521,2653.2,2653.1,1.17650877]
[1729377944040,4.603521,2653.2,2653.1,0.78313544]
[1729377944244,3.39225,2653.1,2652.9,1.17650877]
[1729377944475,3.39225,2653.1,2653.0,1.17650877]
[1729377945080,3.39225,2653.1,2652.9,1.56868442]
[1729377945293,3.39225,2653.1,2653.0,1.56868442]
[1729377945595,3.39225,2653.1,2653.0,1.17487097]
[1729377948750,3.39238,2653.0,2652.9,1.56868442]
[1729377949075,4.18528,2653.0,2652.9,1.56868442]
[1729377949786,3.39251,2652.9,2652.8,1.56868442]
[1729377950448,3.39251,2652.9,2652.7,1.96036059]
[1729377950651,3.39264,2652.8,2652.5,2.35243271]
[1729377951378,3.39251,2652.9,2652.5,2.35243271]
[1729377951577,3.39264,2652.8,2652.7,1.96075186]
[1729377951783,3.39264,2652.8,2652.6,1.96075186]
[1729377952277,3.39264,2652.8,2652.7,1.96075186]
[1729377955295,3.39264,2652.8,2652.7,1.96155677]
[1729377956271,3.39264,2652.8,2652.5,2.35386812]
[1729377958275,3.39252,2652.9,2652.5,2.35386812]
[1729377958483,6.78513,2652.9,2652.8,1.96253123]
[1729377959687,6.78513,2652.9,2652.8,2.10481665]
[1729377959887,6.78513,2652.9,2652.8,2.10481418]
[1729377960196,6.58513,2652.9,2652.8,2.10465878]
[1729377960597,6.58513,2652.9,2652.8,2.38500347]
[1729377960764,6.58513,2652.9,2652.8,2.10465878]
[1729377961261,6.58513,2652.9,2652.8,2.38500347]
[1729377961466,6.58513,2652.9,2652.8,2.10465878]
[1729377961763,6.58513,2652.9,2652.8,2.38500347]
[1729377961962,6.58513,2652.9,2652.8,2.10465878]
[1729377962306,6.58513,2652.9,2652.8,2.38500347]
[1729377962475,6.58513,2652.9,2652.8,2.10465878]
[1729377962672,6.58513,2652.9,2652.8,2.38500347]
[1729377962877,6.58513,2652.9,2652.8,2.10465878]
[1729377963276,6.58513,2652.9,2652.8,2.38500347]
[1729377963488,6.58513,2652.9,2652.8,2.10405636]
[1729377963690,6.58513,2652.9,2652.8,2.38440105]
[1729377964004,3.19252,2652.9,2652.8,2.38440105]
[1729377964456,3.19252,2652.9,2652.8,2.10405636]
[1729377964565,3.19252,2652.9,2652.8,2.38440105]
[1729377964764,3.19252,2652.9,2652.8,2.10405636]
[1729377964969,3.19252,2652.9,2652.8,2.38440105]
[1729377965170,3.19252,2652.9,2652.8,2.10405636]
[1729377965400,3.19252,2652.9,2652.8,2.38440105]
[1729377965704,3.19252,2652.9,2652.8,2.10405636]
[1729377966060,3.19252,2652.9,2652.8,2.38425945]
[1729377966495,3.19252,2652.9,2652.8,2.10399719]
[1729377966706,3.19252,2652.9,2652.8,2.38425945]
[1729377966908,3.19252,2652.9,2652.8,2.10399719]
[1729377967063,3.19252,2652.9,2652.8,2.38425945]
[1729377967266,3.19252,2652.9,2652.8,2.10399719]
[1729377967503,3.19252,2652.9,2652.8,2.38425945]
[1729377967661,3.19252,2652.9,2652.8,2.10399719]
[1729377967862,3.19252,2652.9,2652.8,2.38425945]
[1729377968102,3.19252,2652.9,2652.8,2.10399719]
[1729377968306,3.19252,2652.9,2652.8,2.38447683]
[1729377969674,3.19252,2652.9,2652.8,2.24225305]
[1729377969875,3.19252,2652.9,2652.8,2.38446551]
[1729377970276,3.19252,2652.9,2652.8,2.38445862]
[1729377970798,3.19252,2652.9,2652.8,0.42246783]
[1729377971002,3.19252,2652.9,2652.8,2.38430213]
[1729377971416,3.19252,2652.9,2652.8,0.42246783]
[1729377972123,3.19252,2652.9,2652.8,2.38439868]
[1729377972291,3.19252,2652.9,2652.8,0.42246783]
[1729377977194,3.39226,2653.1,2652.8,1.10755709]
[1729377977546,3.39232,2653.1,2652.9,0.14223719]
[1729377977712,3.39232,2653.1,2653.0,0.14223719]
[1729377977898,3.39232,2653.1,2653.0,0.42237843]
[1729377980354,6.78418,2653.3,2653.0,0.42237843]
[1729377980556,3.39207,2653.3,2653.2,2.3957508]
[1729377980771,0.0188603,2653.7,2653.2,3.21002151]
[1729377980972,3.4104503,2653.7,2653.5,1.17604327]
[1729377981156,3.4104503,2653.7,2653.6,1.17604327]
[1729377981362,0.0188603,2653.7,2653.6,1.17604327]
[1729377981679,3.4103503,2653.7,2653.6,1.17604327]
[1729377981839,0.0188603,2653.7,2653.6,1.17604327]
[1729377985167,0.0188603,2653.7,2653.6,1.1844401]
[1729377985342,0.0188603,2653.7,2653.6,2.7524978]
[1729377986051,0.0188603,2653.7,2653.6,1.1844401]
[1729377986353,0.0188603,2653.7,2653.6,2.75014878]
[1729377988471,0.0188603,2653.7,2653.6,2.35788357]
[1729377989462,3.36110208,2653.8,2653.6,2.35788357]
[1729377989675,3.39131,2653.9,2653.7,0.39235923]
[1729377989875,6.78267,2653.9,2653.8,1.17310499]
[1729377991669,3.39131,2653.9,2653.7,1.56546422]
[1729377991871,3.39136,2653.8,2653.7,1.56546422]
[1729377993169,3.39136,2653.8,2653.7,0.39235923]
[1729377994166,3.39136,2653.8,2653.7,1.17358455]
[1729377997100,3.39136,2653.8,2653.7,1.92578455]
[1729377997447,3.39123,2653.9,2653.7,1.92578455]
[1729377997735,3.39123,2653.9,2653.8,0.34560296]
[1729377998247,3.39123,2653.9,2653.7,1.53342532]
[1729377998248,3.39136,2653.8,2653.7,1.53342532]
[1729378001404,3.39136,2653.8,2653.7,0.7522]
[1729378001604,3.39136,2653.8,2653.7,1.53342532]
[1729378002155,3.39136,2653.8,2653.7,0.7522]
[1729378003549,3.39136,2653.8,2653.7,1.53342532]
[1729378004050,3.39136,2653.8,2653.7,0.78122532]
[1729378004220,3.39149,2653.7,2653.6,0.78122532]
[1729378004415,3.39149,2653.7,2653.5,1.92530499]
[1729378004655,3.39149,2653.7,2653.6,0.78099082]
[1729378005530,3.39124,2653.9,2653.6,0.78099082]
[1729378005726,3.39139,2653.8,2653.6,0.78099082]
[1729378006640,3.39149,2653.7,2653.6,0.78099082]
[1729378007258,3.39161,2653.6,2653.5,0.78099082]
[1729378007457,3.39161,2653.6,2653.4,1.31492438]
[1729378007751,3.39161,2653.6,2653.5,0.92303321]
[1729378008316,3.39161,2653.6,2653.5,0.92307302]
[1729378008754,3.39161,2653.6,2653.5,0.14181939]
[1729378008956,3.39161,2653.6,2653.5,1.31492438]
[1729378009153,3.39161,2653.6,2653.4,1.31492438]
[1729378009324,3.39161,2653.6,2653.5,0.14181939]
[1729378009895,3.39161,2653.6,2653.5,1.31492438]
[1729378010189,3.39161,2653.6,2653.5,1.31505919]
[1729378010850,3.39161,2653.6,2653.5,1.17310499]
[1729378011054,3.39161,2653.6,2653.5,0.14201401]
[1729378011384,3.39161,2653.6,2653.5,1.315119]
[1729378013811,3.39161,2653.6,2653.5,0.923826]
[1729378013812,4.21771,2653.6,2653.5,0.923826]
[1729378014088,4.896021,2653.6,2653.5,0.14201401]
[1729378014248,4.21784,2653.5,2653.4,0.78181199]
[1729378014448,5.3857661,2653.5,2653.3,0.78181199]
[1729378014648,3.392,2653.3,2653.2,0.78181199]
[1729378014848,3.392,2653.3,2653.2,0.92397996]
[1729378014849,4.2181,2653.3,2653.2,0.92397996]
[1729378015248,4.2181,2653.3,2653.2,0.78181199]
[1729378018200,4.2181,2653.3,2653.1,1.17310499]
[1729378018416,3.392,2653.3,2653.2,0.78267909]
[1729378018629,3.392,2653.3,2653.2,1.17310499]
[1729378018835,3.392,2653.3,2653.2,0.14201603]
[1729378018989,3.39177,2653.5,2653.2,2.15313096]
[1729378019197,3.39177,2653.5,2653.4,0.7825305]
[1729378019419,3.39177,2653.5,2653.4,1.17376414]
[1729378020950,3.39174,2653.5,2653.4,0.14201603]
[1729378021130,3.39174,2653.5,2653.4,1.17397067]
[1729378021336,3.39174,2653.5,2653.4,1.56570868]
[1729378022193,3.39174,2653.5,2653.4,1.70772471]